bitfinex-derivatives/quotes_BTCF0:USTF0_20240917
["timestamp","ask_amount","ask_price","bid_price","bid_amount"]
[1726546722719,0.188912,58196.0,58195.0,0.21459113]
[1726546722915,0.188912,58196.0,58195.0,0.11186403]
[1726546726020,0.188912,58196.0,58195.0,0.0028]
[1726546726514,0.19907991,58196.0,58195.0,0.0028]
[1726546729525,0.30212284,58196.0,58195.0,0.0028]
[1726546732615,0.66292284,58196.0,58195.0,0.0028]
[1726546733021,0.55987991,58196.0,58195.0,0.0028]
[1726546734426,0.55987991,58196.0,58195.0,0.08841885]
[1726546735327,0.55987991,58196.0,58195.0,0.0028]
[1726546737530,0.55987991,58196.0,58195.0,0.00662]
[1726546738531,0.64579191,58196.0,58195.0,0.00662]
[1726546744425,0.55987991,58196.0,58195.0,0.00662]
[1726546744630,0.088912,58196.0,58195.0,0.092533]
[1726546744824,0.003,58196.0,58195.0,0.092533]
[1726546746221,0.003,58196.0,58195.0,0.14389949]
[1726546748932,0.003,58196.0,58195.0,0.15387535]
[1726546749134,0.085904,58201.0,58198.0,0.085908]
[1726546749337,0.085904,58201.0,58200.0,0.08556894]
[1726546749527,0.085904,58201.0,58200.0,0.19537914]
[1726546750534,0.086904,58201.0,58200.0,0.19637914]
[1726546751730,0.086904,58201.0,58200.0,0.08836894]
[1726546752324,0.086904,58201.0,58200.0,0.19734418]
[1726546752539,0.086904,58201.0,58200.0,0.08835886]
[1726546753045,0.086904,58201.0,58200.0,0.19734682]
[1726546754346,0.186904,58201.0,58200.0,0.19734682]
[1726546756133,0.186904,58201.0,58200.0,0.0028]
[1726546759440,0.186904,58201.0,58200.0,0.07123252]
[1726546761034,0.186904,58201.0,58200.0,0.088706]
[1726546764236,0.23288818,58201.0,58200.0,0.088706]
[1726546764543,0.28627741,58201.0,58200.0,0.088706]
[1726546764730,0.28628788,58201.0,58200.0,0.088706]
[1726546766342,0.28628788,58201.0,58200.0,0.0028]
[1726546770745,0.51596669,58201.0,58200.0,0.0028]
[1726546771248,0.279504,58201.0,58200.0,0.0028]
[1726546772145,0.365408,58201.0,58200.0,0.0028]
[1726546773457,0.365408,58201.0,58200.0,0.07128378]
[1726546774557,0.365408,58201.0,58200.0,0.0028]
[1726546778662,0.365408,58201.0,58200.0,0.07514408]
[1726546778965,0.365408,58201.0,58200.0,0.00662]
[1726546779766,0.365408,58201.0,58200.0,0.07514498]
[1726546780062,0.365408,58201.0,58200.0,0.07514654]
[1726546780468,0.365408,58201.0,58200.0,0.00662]
[1726546783261,0.451312,58201.0,58200.0,0.00662]
[1726546783459,0.451312,58201.0,58187.0,0.48182639]
[1726546783460,0.085915,58194.0,58193.0,0.08555886]
[1726546783767,0.085915,58194.0,58187.0,0.40986]
[1726546783768,0.546715,58194.0,58187.0,0.10384273]
[1726546784072,0.4608,58188.0,58187.0,0.00128]
[1726546784372,0.546724,58188.0,58187.0,0.06856704]
[1726546784557,0.085927,58186.0,58185.0,0.06856704]
[1726546784759,0.185927,58186.0,58185.0,0.06856704]
[1726546785471,0.185927,58186.0,58184.0,0.06856704]
[1726546785472,0.085928,58185.0,58184.0,0.06856704]
[1726546785666,0.185928,58185.0,58184.0,0.06856704]
[1726546786273,0.085935,58180.0,58179.0,0.0479]
[1726546786459,0.185935,58180.0,58179.0,0.0479]
[1726546787665,0.185935,58180.0,58179.0,0.0549]
[1726546787867,0.185935,58180.0,58179.0,0.0619]
[1726546788171,0.185935,58180.0,58179.0,0.014]
[1726546788765,0.08593,58184.0,58179.0,0.114]
[1726546789065,0.1101434,58186.0,58179.0,0.21341394]
[1726546789263,0.1101434,58186.0,58183.0,0.0008]
[1726546789264,0.1,58186.0,58183.0,0.0008]
[1726546790067,0.085929,58184.0,58183.0,0.0008]
[1726546790968,0.186329,58184.0,58183.0,0.0008]
[1726546791274,0.187329,58184.0,58183.0,0.0008]
[1726546791771,0.0014,58184.0,58183.0,0.547531]
[1726546792073,0.085924,58188.0,58186.0,0.085927]
[1726546792270,0.085924,58188.0,58187.0,0.0004]
[1726546793875,0.086924,58188.0,58187.0,0.0004]
[1726546795163,0.086924,58188.0,58187.0,0.0499]
[1726546800780,0.001,58188.0,58187.0,0.24434342]
[1726546801282,0.001,58188.0,58187.0,0.135825]
[1726546803873,0.086924,58188.0,58187.0,0.0499]
[1726546804273,0.001,58188.0,58187.0,0.135825]
[1726546804474,0.001,58188.0,58187.0,0.235825]
[1726546805782,0.086924,58188.0,58187.0,0.0499]
[1726546806883,0.186924,58188.0,58187.0,0.0499]
[1726546807695,0.001,58188.0,58187.0,0.0499]
[1726546807986,0.001,58188.0,58187.0,0.18711651]
[1726546809485,0.001,58188.0,58187.0,0.24430672]
[1726546809885,0.101,58188.0,58187.0,0.24430672]
[1726546811892,0.001,58188.0,58187.0,0.24430672]
[1726546812587,0.001,58188.0,58187.0,0.3469346]
[1726546816187,0.001,58188.0,58187.0,0.24430672]
[1726546816389,0.001,58188.0,58187.0,0.135825]
[1726546816588,0.001,58188.0,58187.0,0.18723287]
[1726546817101,0.086924,58188.0,58187.0,0.10130787]
[1726546817290,0.086924,58188.0,58187.0,0.0004]
[1726546817600,0.172848,58188.0,58187.0,0.0004]
[1726546817896,0.221648,58188.0,58187.0,0.0004]
[1726546818486,0.582448,58188.0,58187.0,0.0004]
[1726546818690,0.32471765,58188.0,58187.0,0.0004]
[1726546819094,0.221648,58188.0,58187.0,0.0004]
[1726546819502,0.582448,58188.0,58187.0,0.0004]
[1726546820090,0.68551317,58188.0,58187.0,0.0004]
[1726546820394,0.171858,58184.0,58183.0,0.0008]
[1726546820594,0.085937,58179.0,58178.0,0.41220787]
[1726546820901,0.085937,58179.0,58178.0,0.3608]
[1726546821387,0.082937,58179.0,58178.0,0.3608]
[1726546821784,0.079937,58179.0,58178.0,0.3608]
[1726546822689,0.079937,58179.0,58178.0,0.3678]
[1726546823093,0.079937,58179.0,58178.0,0.3758]
[1726546823589,0.126137,58179.0,58178.0,0.3748]
[1726546824290,0.126137,58179.0,58178.0,0.48374688]
[1726546824789,0.126137,58179.0,58178.0,0.12294688]
[1726546825587,0.13646043,58179.0,58178.0,0.12294688]
[1726546827104,0.09026043,58179.0,58178.0,0.20888488]
[1726546827796,0.079937,58179.0,58178.0,0.20888488]
[1726546828600,0.0493,58183.0,58178.0,0.20888488]
[1726546828796,0.135231,58183.0,58182.0,0.0004]
[1726546829597,0.14538427,58183.0,58182.0,0.0004]
[1726546830401,0.14538427,58183.0,58182.0,0.0034]
[1726546831896,0.14538427,58183.0,58182.0,0.0064]
[1726546834005,0.24538427,58183.0,58182.0,0.0064]
[1726546837105,0.33131527,58183.0,58182.0,0.0064]
[1726546840815,0.28401527,58183.0,58182.0,0.0064]
[1726546846422,0.28401527,58183.0,58182.0,0.20063149]
[1726546846929,0.28401527,58183.0,58182.0,0.20063538]
[1726546847533,0.28401527,58183.0,58182.0,0.11498089]
[1726546851323,0.28401527,58183.0,58182.0,0.11509188]
[1726546854636,0.28401527,58183.0,58182.0,0.0064]
[1726546861439,0.28401527,58183.0,58182.0,0.11507192]
[1726546861943,0.28401527,58183.0,58182.0,0.11889192]
[1726546862831,0.09808427,58183.0,58182.0,0.11889192]
[1726546863030,0.19808427,58183.0,58182.0,0.11889192]
[1726546863642,0.09808427,58183.0,58182.0,0.11889192]
[1726546863840,0.01215327,58183.0,58182.0,0.20482392]
[1726546864042,0.002,58183.0,58182.0,0.33422349]
[1726546864338,0.0004,58184.0,58183.0,0.085931]
[1726546864644,0.0004,58184.0,58183.0,0.32480249]
[1726546866644,0.0004,58184.0,58183.0,0.32680249]
[1726546867139,0.0004,58184.0,58183.0,0.32880249]
[1726546870336,0.0004,58184.0,58183.0,0.19940292]
[1726546874046,0.0004,58184.0,58183.0,0.19902872]
[1726546875150,0.086329,58184.0,58183.0,0.30186444]
[1726546875348,0.086329,58184.0,58183.0,0.19902872]
[1726546875540,0.086329,58184.0,58183.0,0.11309772]
[1726546875736,0.086329,58184.0,58183.0,0.19881612]
[1726546876252,0.086329,58184.0,58183.0,0.19902011]
[1726546876438,0.086329,58184.0,58183.0,0.0048]
[1726546884555,0.086329,58184.0,58183.0,0.11335846]
[1726546888358,0.086329,58184.0,58183.0,0.11334986]
[1726546891463,0.086329,58184.0,58183.0,0.0048]
[1726546899568,0.086329,58184.0,58183.0,0.11345186]
[1726546903057,0.086329,58184.0,58183.0,0.11346026]
[1726546903264,0.172258,58184.0,58183.0,0.11346026]
[1726546903462,0.172258,58184.0,58183.0,0.21630344]
[1726546903771,0.172258,58184.0,58183.0,0.11728026]
[1726546905173,0.086329,58184.0,58183.0,0.11728026]
[1726546905669,0.086329,58184.0,58183.0,0.24686374]
[1726546906667,0.18947282,58184.0,58183.0,0.00862]
[1726546908077,0.086329,58184.0,58183.0,0.06017949]
[1726546909863,0.18947282,58184.0,58183.0,0.00862]
[1726546914573,0.086329,58184.0,58183.0,0.11732226]
[1726546915267,0.086329,58184.0,58183.0,0.22043906]
[1726546917273,0.086329,58184.0,58183.0,0.11728586]
[1726546918668,0.172258,58184.0,58183.0,0.11728586]
[1726546918871,0.086329,58184.0,58183.0,0.11728586]
[1726546919576,0.172258,58184.0,58183.0,0.11728586]
[1726546920566,0.086329,58184.0,58183.0,0.11728586]
[1726546922370,0.172258,58184.0,58183.0,0.11728586]
[1726546923972,0.086329,58184.0,58183.0,0.11728586]
[1726546929677,0.086329,58184.0,58183.0,0.00862]
[1726546930079,0.086329,58184.0,58183.0,0.0048]
[1726546936587,0.086329,58184.0,58183.0,0.11341415]
[1726546941206,0.172258,58184.0,58183.0,0.11341415]
[1726546944300,0.086329,58184.0,58183.0,0.11341415]
[1726546944610,0.13329541,58184.0,58183.0,0.00862]
[1726546945705,0.49409541,58184.0,58183.0,0.00862]
[1726546946008,0.13329541,58184.0,58183.0,0.00862]
[1726546946208,0.49409541,58184.0,58183.0,0.00862]
[1726546949709,0.547129,58184.0,58183.0,0.00862]
[1726546949911,0.67998914,58184.0,58183.0,0.00862]
[1726546951706,0.633058,58184.0,58183.0,0.11733352]
[1726546952817,0.547129,58184.0,58183.0,0.11733352]
[1726546953716,0.633058,58184.0,58183.0,0.11733352]
[1726546953912,0.547129,58184.0,58183.0,0.11733352]
[1726546954514,0.547129,58184.0,58183.0,0.1173191]
[1726546955515,0.633058,58184.0,58183.0,0.1173191]
[1726546958017,0.547129,58184.0,58183.0,0.1173191]
[1726546958424,0.633058,58184.0,58183.0,0.1173191]
[1726546959041,0.272258,58184.0,58183.0,0.1173191]
[1726546959325,0.633058,58184.0,58183.0,0.1173191]
[1726546959725,0.31920186,58184.0,58183.0,0.00862]
[1726546959927,0.68000186,58184.0,58183.0,0.00862]
[1726546961223,0.49407286,58184.0,58183.0,0.00862]
[1726546961429,0.59407286,58184.0,58183.0,0.00862]
[1726546961725,0.68000186,58184.0,58183.0,0.00862]
[1726546963125,0.59407286,58184.0,58183.0,0.00862]
[1726546964026,0.68000186,58184.0,58183.0,0.00862]
[1726546966711,0.633058,58184.0,58183.0,0.11730451]
[1726546966916,0.633058,58184.0,58183.0,0.20321852]
[1726546967426,0.633058,58184.0,58183.0,0.20322663]
[1726546970121,0.547129,58184.0,58183.0,0.20322663]
[1726546970326,0.633058,58184.0,58183.0,0.20322663]
[1726546971131,0.633058,58184.0,58183.0,0.19940663]
[1726546973130,0.547129,58184.0,58183.0,0.19940663]
[1726546974844,0.547129,58184.0,58183.0,0.0048]
[1726546975523,0.447129,58184.0,58183.0,0.0048]
[1726546975724,0.46436747,58184.0,58183.0,0.0048]
[1726546975928,0.0004,58184.0,58183.0,0.05634898]
[1726546976332,0.0004,58184.0,58183.0,0.05631995]
[1726546976539,0.0004,58184.0,58183.0,0.0048]
[1726546977231,0.0004,58184.0,58183.0,0.090731]
[1726546977541,0.0004,58184.0,58183.0,0.14223723]
[1726546978333,0.0004,58184.0,58183.0,0.090731]
[1726546978542,0.0004,58184.0,58183.0,0.14223723]
[1726546978744,0.0004,58184.0,58183.0,0.19003723]
[1726546979436,0.0004,58184.0,58183.0,0.138531]
[1726546981135,0.0004,58184.0,58183.0,0.19003723]
[1726546981844,0.0004,58184.0,58183.0,0.37590292]
[1726546982238,0.0004,58184.0,58183.0,0.24681207]
[1726546982632,0.00993449,58188.0,58187.0,0.085925]
[1726546982835,0.185922,58190.0,58187.0,0.10908107]
[1726546983034,0.185922,58190.0,58189.0,0.08578687]
[1726546983239,0.185922,58190.0,58189.0,0.19486794]
[1726546983445,0.085916,58194.0,58189.0,0.19486794]
[1726546983642,0.01000192,58194.0,58193.0,0.086716]
[1726546983831,0.08591,58197.0,58196.0,0.085912]
[1726546984238,0.08591,58197.0,58196.0,0.086712]
[1726546984442,0.08591,58197.0,58196.0,0.085912]
[1726546984745,0.087915,58194.0,58193.0,0.0474]
[1726546984937,0.187915,58194.0,58193.0,0.0018]
[1726546985243,0.27383,58194.0,58193.0,0.07036968]
[1726546985743,0.27383,58194.0,58193.0,0.0018]
[1726546986832,0.189915,58194.0,58193.0,0.0018]
[1726546987145,0.189915,58194.0,58193.0,0.07037339]
[1726546987738,0.191915,58194.0,58193.0,0.07137339]
[1726546989740,0.191915,58194.0,58193.0,0.0028]
[1726546992738,0.191915,58194.0,58193.0,0.05421478]
[1726546992939,0.552715,58194.0,58193.0,0.05421478]
[1726546994749,0.552715,58194.0,58193.0,0.0028]
[1726546995147,0.191915,58194.0,58193.0,0.0028]
[1726546995549,0.191915,58194.0,58193.0,0.0542138]
[1726546995943,0.191915,58194.0,58193.0,0.0028]
[1726546995944,0.27783,58194.0,58193.0,0.0028]
[1726546996247,0.191915,58194.0,58193.0,0.0028]
[1726546996947,0.23916707,58194.0,58193.0,0.0028]
[1726547001561,0.23922177,58194.0,58193.0,0.0028]
[1726547003758,0.191915,58194.0,58193.0,0.0028]
[1726547004354,0.191915,58194.0,58193.0,0.07137339]
[1726547004765,0.191915,58194.0,58193.0,0.0028]
[1726547005063,0.27783,58194.0,58193.0,0.07137339]
[1726547005254,0.191915,58194.0,58193.0,0.0028]
[1726547005559,0.27783,58194.0,58193.0,0.0028]
[1726547005755,0.191915,58194.0,58193.0,0.0028]
[1726547006356,0.191915,58194.0,58193.0,0.07137339]
[1726547006657,0.27783,58194.0,58193.0,0.05429589]
[1726547008251,0.191915,58194.0,58193.0,0.05429589]
[1726547009761,0.552715,58194.0,58193.0,0.05429589]
[1726547010954,0.191915,58194.0,58193.0,0.05429589]
[1726547011158,0.552715,58194.0,58193.0,0.05429589]
[1726547011669,0.63863,58194.0,58193.0,0.05429589]
[1726547012055,0.552715,58194.0,58193.0,0.0028]
[1726547012258,0.63863,58194.0,58193.0,0.0028]
[1726547013455,0.552715,58194.0,58193.0,0.0028]
[1726547013759,0.63863,58194.0,58193.0,0.0028]
[1726547014266,0.63863,58194.0,58193.0,0.05430502]
[1726547019064,0.63863,58194.0,58193.0,0.0028]
[1726547019065,0.74049042,58194.0,58193.0,0.0028]
[1726547019665,0.65457542,58194.0,58193.0,0.0028]
[1726547020069,0.74049042,58194.0,58193.0,0.0028]
[1726547020967,0.6545318,58194.0,58193.0,0.0028]
[1726547021169,0.7404468,58194.0,58193.0,0.0028]
[1726547021962,0.3796468,58194.0,58193.0,0.0028]
[1726547022163,0.6545318,58194.0,58193.0,0.0028]
[1726547023271,0.7404468,58194.0,58193.0,0.0028]
[1726547025373,0.6545318,58194.0,58193.0,0.0028]
[1726547025764,0.6545318,58194.0,58193.0,0.00662]
[1726547027078,0.552715,58194.0,58193.0,0.07519339]
[1726547028569,0.3668,58194.0,58193.0,0.07519339]
[1726547028776,0.006,58194.0,58193.0,0.16110939]
[1726547028970,0.0101054,58198.0,58193.0,0.07519339]
[1726547029167,0.104,58201.0,58198.0,0.085909]
[1726547029367,0.10990581,58201.0,58200.0,0.08656371]
[1726547029768,0.447578,58205.0,58200.0,0.19452744]
[1726547029968,0.446698,58205.0,58204.0,0.06943209]
[1726547030172,0.446698,58205.0,58204.0,0.0008]
[1726547030677,0.45668824,58205.0,58204.0,0.0008]
[1726547031174,0.46068824,58205.0,58204.0,0.05222203]
[1726547031476,0.56068824,58205.0,58204.0,0.05322203]
[1726547031674,0.55668824,58205.0,58204.0,0.05322203]
[1726547031877,0.56068824,58205.0,58204.0,0.05422203]
[1726547033272,0.56068824,58205.0,58204.0,0.0028]
[1726547034467,0.80090721,58205.0,58204.0,0.0028]
[1726547036776,0.80086894,58205.0,58204.0,0.0028]
[1726547037283,0.66338373,58205.0,58204.0,0.0028]
[1726547039182,0.60820942,58205.0,58204.0,0.0028]
[1726547041578,0.56068824,58205.0,58204.0,0.0028]
[1726547044388,0.64658624,58205.0,58204.0,0.0028]
[1726547047983,0.56068824,58205.0,58204.0,0.0028]
[1726547049581,0.68069083,58205.0,58204.0,0.0028]
[1726547049786,0.72838203,58205.0,58204.0,0.0028]
[1726547050488,0.72438203,58205.0,58204.0,0.0018]
[1726547050688,0.72438203,58205.0,58204.0,0.0028]
[1726547051087,0.60437944,58205.0,58204.0,0.0028]
[1726547052179,0.65977612,58205.0,58204.0,0.0028]
[1726547054475,0.60437944,58205.0,58204.0,0.0028]
[1726547054679,0.60442635,58205.0,58204.0,0.0028]
[1726547056584,0.55668824,58205.0,58204.0,0.0028]
[1726547057186,0.55668824,58205.0,58204.0,0.05422203]
[1726547057980,0.55668824,58205.0,58204.0,0.0028]
[1726547058790,0.19588824,58205.0,58204.0,0.0028]
[1726547058981,0.55668824,58205.0,58204.0,0.0028]
[1726547060581,0.55668824,58205.0,58204.0,0.05423866]
[1726547060780,0.55668824,58205.0,58204.0,0.0028]
[1726547061083,0.55668824,58205.0,58204.0,0.05423856]
[1726547061588,0.55668824,58205.0,58204.0,0.0028]
[1726547061788,0.55668824,58205.0,58204.0,0.05423917]
[1726547061990,0.55668824,58205.0,58204.0,0.0028]
[1726547062190,0.55668824,58205.0,58204.0,0.05423821]
[1726547062489,0.55668824,58205.0,58204.0,0.0028]
[1726547063094,0.55668824,58205.0,58204.0,0.05423804]
[1726547063478,0.55668824,58205.0,58204.0,0.0028]
[1726547063894,0.19588824,58205.0,58204.0,0.0028]
[1726547064084,0.55668824,58205.0,58204.0,0.05423775]
[1726547064394,0.19588824,58205.0,58204.0,0.05423775]
[1726547064585,0.60441999,58205.0,58204.0,0.0028]
[1726547064786,0.72450555,58205.0,58204.0,0.0028]
[1726547066287,0.65983906,58205.0,58204.0,0.0028]
[1726547066898,0.65983906,58205.0,58204.0,0.00662]
[1726547067592,0.87721271,58205.0,58204.0,0.00662]
[1726547067993,0.87748364,58205.0,58204.0,0.00662]
[1726547068998,0.55668824,58205.0,58204.0,0.00662]
[1726547069191,0.72300511,58205.0,58204.0,0.00662]
[1726547070796,0.36220511,58205.0,58204.0,0.00662]
[1726547071498,0.19588824,58205.0,58204.0,0.05805775]
[1726547075700,0.19588824,58205.0,58204.0,0.00662]
[1726547077104,0.19588824,58205.0,58204.0,0.07525209]
[1726547078106,0.19588824,58205.0,58204.0,0.00662]
[1726547078801,0.004,58209.0,58204.0,0.00662]
[1726547078802,0.004,58209.0,58208.0,0.085894]
[1726547079013,0.004,58213.0,58212.0,0.085888]
[1726547079215,0.01024583,58215.0,58214.0,0.185885]
[1726547079420,0.004,58222.0,58214.0,0.85112232]
[1726547079720,0.1,58225.0,58223.0,0.085871]
[1726547079918,0.1,58225.0,58224.0,0.05207897]
[1726547080309,0.1,58227.0,58226.0,0.085867]
[1726547080519,0.1,58227.0,58226.0,0.086667]
[1726547080912,0.1,58227.0,58226.0,0.0008]
[1726547081713,0.1,58227.0,58226.0,0.0018]
[1726547081912,0.1,58227.0,58226.0,0.0028]
[1726547086510,0.26962317,58227.0,58221.0,0.27156329]
[1726547086718,0.1,58223.0,58221.0,0.27032329]
[1726547087019,0.16962317,58222.0,58221.0,0.35619829]
[1726547087528,0.32336782,58222.0,58221.0,0.35619829]
[1726547088023,0.32336782,58222.0,58221.0,0.35719829]
[1726547088327,0.31663523,58222.0,58221.0,0.35719829]
[1726547088532,0.31663523,58222.0,58221.0,0.35819829]
[1726547088820,0.31763523,58222.0,58221.0,0.35819829]
[1726547089221,0.31756708,58222.0,58221.0,0.35819829]
[1726547089822,0.31756708,58222.0,58221.0,0.87347829]
[1726547090017,0.31756708,58222.0,58221.0,0.35719829]
[1726547090321,0.31956708,58222.0,58221.0,0.35819829]
[1726547091616,0.16582243,58222.0,58221.0,0.35819829]
[1726547092320,0.16582243,58222.0,58221.0,0.31119829]
[1726547094523,0.003,58222.0,58221.0,0.31119829]
[1726547095817,0.003,58222.0,58221.0,0.087875]
[1726547100528,0.103,58222.0,58221.0,0.087875]
[1726547109133,0.103,58222.0,58221.0,0.091695]
[1726547110035,0.26631454,58222.0,58221.0,0.091695]
[1726547110534,0.085882,58216.0,58214.0,0.004]
[1726547110726,0.085884,58215.0,58214.0,0.085884]
[1726547110923,0.2480191,58215.0,58214.0,0.085884]
[1726547111330,0.31677476,58215.0,58214.0,0.185884]
[1726547111531,0.10060339,58215.0,58214.0,0.185884]
[1726547112829,0.23800053,58215.0,58214.0,0.185884]
[1726547113222,0.24000053,58215.0,58214.0,0.085884]
[1726547113426,0.24200053,58215.0,58214.0,0.085884]
[1726547114133,0.24199327,58215.0,58214.0,0.085884]
[1726547115336,0.24222752,58215.0,58214.0,0.085884]
[1726547115832,0.10483764,58215.0,58214.0,0.085884]
[1726547116728,0.10483764,58215.0,58214.0,0.19435831]
[1726547116729,0.004,58215.0,58214.0,0.19435831]
[1726547120237,0.004,58215.0,58214.0,1.30964732]
[1726547120434,0.004,58215.0,58214.0,1.35464732]
[1726547120841,0.004,58215.0,58214.0,1.45721797]
[1726547121235,0.004,58215.0,58214.0,1.35464732]
[1726547122843,0.004,58215.0,58214.0,1.71544732]
[1726547124639,0.008,58223.0,58222.0,0.085873]
[1726547124835,0.0008,58227.0,58226.0,0.171734]
[1726547125036,0.10298852,58227.0,58226.0,0.185867]
[1726547125340,0.10298235,58228.0,58227.0,0.085866]
[1726547125641,0.10298235,58232.0,58231.0,0.08586]
[1726547125843,0.10298235,58232.0,58231.0,0.54746]
[1726547126041,0.10298235,58232.0,58231.0,0.60746]
[1726547126240,0.10298235,58232.0,58231.0,1.72266]
[1726547126546,0.13737438,58242.0,58231.0,1.6368]
[1726547126547,0.10298235,58235.0,58231.0,1.6368]
[1726547126751,0.10298235,58236.0,58235.0,0.085854]
[1726547126944,0.10298235,58236.0,58235.0,0.086654]
[1726547127248,0.10298235,58236.0,58235.0,1.201014]
[1726547127444,0.10298235,58237.0,58236.0,0.085853]
[1726547127842,0.10298235,58237.0,58236.0,0.601813]
[1726547128240,0.10298235,58238.0,58237.0,0.085851]
[1726547128443,0.10266747,58238.0,58237.0,0.3616]
[1726547128642,0.10266035,58239.0,58237.0,0.3616]
[1726547128950,0.10266035,58239.0,58238.0,0.0008]
[1726547129343,6.2e-07,58244.0,58239.0,1.27239673]
[1726547129540,0.0046,58256.0,58255.0,0.085825]
[1726547129541,0.004,58256.0,58255.0,0.085825]
[1726547129851,0.1433,58267.0,58255.0,0.7216]
[1726547130146,1.0,58268.0,58266.0,0.0008]
[1726547130350,1.0,58268.0,58267.0,0.0008]
[1726547131953,1.0,58268.0,58267.0,0.0018]
[1726547132252,1.0,58268.0,58267.0,0.0028]
[1726547134657,1.0,58268.0,58267.0,0.1628]
[1726547134849,1.0,58268.0,58267.0,0.0028]
[1726547135246,1.0,58268.0,58267.0,0.0018]
[1726547135557,1.0,58268.0,58267.0,0.0028]
[1726547136657,1.0,58268.0,58267.0,0.088607]
[1726547136954,1.0,58268.0,58267.0,0.087607]
[1726547137151,1.0,58268.0,58267.0,0.088607]
[1726547139355,0.824178,58268.0,58267.0,0.174414]
[1726547139653,0.736215,58268.0,58267.0,0.172614]
[1726547139852,0.530056,58268.0,58267.0,0.172614]
[1726547140046,0.429358,58268.0,58267.0,0.171614]
[1726547140246,0.225165,58268.0,58267.0,0.171614]
[1726547140652,0.12688,58268.0,58267.0,0.171614]
[1726547140848,0.12688,58268.0,58267.0,1.286494]
[1726547141446,0.12688,58268.0,58267.0,0.245807]
[1726547141749,0.12688,58268.0,58267.0,0.085807]
[1726547145861,0.12688,58268.0,58265.0,0.7228]
[1726547146053,0.12688,58268.0,58265.0,0.7216]
[1726547146249,0.28688,58268.0,58265.0,0.7216]
[1726547146457,0.28688,58268.0,58260.0,0.00992012]
[1726547146458,0.16074104,58267.0,58260.0,0.3608]
[1726547146756,0.16,58264.0,58256.0,0.004]
[1726547147157,0.16,58264.0,58256.0,0.089823]
[1726547147360,0.16,58267.0,58260.0,0.3608]
[1726547147553,0.16,58267.0,58266.0,0.0008]
[1726547149159,0.161,58267.0,58266.0,0.0008]
[1726547150865,0.162,58267.0,58266.0,0.0008]
[1726547151765,0.161,58267.0,58266.0,0.0008]
[1726547151969,0.162,58267.0,58266.0,0.0008]
[1726547153361,0.247807,58267.0,58266.0,0.0008]
[1726547153961,0.246807,58267.0,58266.0,0.0008]
[1726547154162,0.247807,58267.0,58266.0,0.0008]
[1726547155167,0.246807,58267.0,58266.0,0.0008]
[1726547155361,0.246807,58267.0,58266.0,0.0692417]
[1726547155362,0.247807,58267.0,58266.0,0.0692417]
[1726547156463,0.247807,58267.0,58266.0,0.0008]
[1726547156864,0.247807,58267.0,58266.0,0.06888853]
[1726547157368,0.333614,58267.0,58266.0,0.0008]
[1726547157965,0.333614,58267.0,58266.0,0.0018]
[1726547159068,0.848494,58267.0,58266.0,0.0018]
[1726547159569,1.448494,58267.0,58266.0,0.0018]
[1726547161773,1.55037885,58267.0,58266.0,0.0018]
[1726547162172,0.95037885,58267.0,58266.0,0.0018]
[1726547163469,0.18969185,58267.0,58266.0,0.0018]
[1726547163668,0.087807,58267.0,58266.0,0.0018]
[1726547164673,0.002,58267.0,58266.0,0.1618]
[1726547164884,0.002,58267.0,58266.0,0.247609]
[1726547165981,0.087807,58267.0,58266.0,0.087609]
[1726547167073,0.002,58267.0,58266.0,0.247609]
[1726547167475,0.12688,58268.0,58267.0,0.085807]
[1726547167678,0.12688,58268.0,58267.0,0.086207]
[1726547168584,0.12688,58268.0,58267.0,0.087207]
[1726547169781,0.01528052,58268.0,58267.0,0.11397191]
[1726547169978,0.10108652,58268.0,58267.0,0.11397191]
[1726547170281,0.01528052,58268.0,58267.0,0.19977891]
[1726547170481,0.01528052,58268.0,58267.0,0.19995728]
[1726547171079,0.004,58274.0,58267.0,1.22903028]
[1726547171287,0.085796,58275.0,58273.0,0.3616]
[1726547171479,0.085796,58275.0,58274.0,0.0008]
[1726547171674,0.085796,58275.0,58274.0,0.085797]
[1726547174478,0.085797,58274.0,58273.0,0.00192]
[1726547174677,0.085797,58274.0,58273.0,0.06895368]
[1726547174880,0.085797,58274.0,58273.0,0.0008]
[1726547175081,0.085797,58274.0,58273.0,0.05191938]
[1726547176485,0.085797,58274.0,58273.0,0.0008]
[1726547176889,0.12744392,58274.0,58273.0,0.0008]
[1726547177185,0.11744392,58274.0,58273.0,0.0008]
[1726547177979,0.20324092,58274.0,58273.0,0.0008]
[1726547178183,0.21323042,58274.0,58273.0,0.0008]
[1726547179983,0.21323141,58274.0,58273.0,0.0008]
[1726547183395,0.33189578,58274.0,58273.0,0.0008]
[1726547184100,0.1715835,58274.0,58273.0,0.0008]
[1726547189403,0.1715835,58274.0,58273.0,0.06895368]
[1726547191797,0.2573805,58274.0,58273.0,0.06903486]
[1726547191997,1.3721805,58274.0,58273.0,0.0008]
[1726547192202,0.2573805,58274.0,58273.0,0.0008]
[1726547192500,0.3035805,58274.0,58273.0,0.0008]
[1726547193002,0.2177835,58274.0,58273.0,0.0008]
[1726547193300,0.3777835,58274.0,58273.0,0.0008]
[1726547199097,0.52244215,58274.0,58273.0,0.0008]
[1726547199490,0.67517232,58274.0,58273.0,0.0008]
[1726547199695,0.52244215,58274.0,58273.0,0.0008]
[1726547201901,0.46244215,58274.0,58273.0,0.0008]
[1726547202096,0.53099698,58274.0,58273.0,0.0008]
[1726547202803,0.33044515,58274.0,58273.0,0.0008]
[1726547203105,0.27553715,58274.0,58273.0,0.0008]
[1726547203505,0.33052497,58274.0,58273.0,0.0008]
[1726547203806,0.23065384,58274.0,58273.0,0.0008]
[1726547204102,0.33065384,58274.0,58273.0,0.0008]
[1726547204302,0.23065384,58274.0,58273.0,0.0008]
[1726547204498,0.48500567,58274.0,58273.0,0.0008]
[1726547205207,0.33065384,58274.0,58273.0,0.0008]
[1726547205410,0.48507369,58274.0,58273.0,0.0008]